bitfinex/quotes_BTCUSD_20251120
["timestamp","ask_amount","ask_price","bid_price","bid_amount"]
[1763656434574,0.0003258,88810.0,88809.0,0.51481374]
[1763656434774,0.0003258,88810.0,88809.0,0.51281374]
[1763656434994,0.0003258,88810.0,88809.0,0.51381374]
[1763656435416,0.0003258,88810.0,88809.0,0.42190374]
[1763656435588,0.0003258,88810.0,88809.0,0.42290374]
[1763656435830,0.0003258,88810.0,88809.0,0.55940726]
[1763656436043,0.0003258,88810.0,88809.0,0.51381374]
[1763656436219,0.0003258,88810.0,88809.0,0.37510249]
[1763656436448,0.0003258,88810.0,88809.0,0.05410249]
[1763656436571,0.0003258,88810.0,88809.0,0.05510249]
[1763656437407,0.0003258,88810.0,88809.0,0.05410249]
[1763656437612,0.0003258,88810.0,88801.0,0.323]
[1763656437832,0.0003258,88810.0,88802.0,0.05210249]
[1763656438032,0.0003258,88810.0,88809.0,0.001]
[1763656440053,0.70118307,88800.0,88790.0,0.00185921]
[1763656440275,0.05105,88791.0,88780.0,0.00185921]
[1763656440913,0.323,88789.0,88780.0,0.00185921]
[1763656441126,0.323,88789.0,88765.0,0.00388]
[1763656441127,0.05,88781.0,88770.0,0.00185921]
[1763656441319,0.04502,88766.0,88742.0,0.02207]
[1763656441879,0.05,88770.0,88742.0,0.11298]
[1763656442074,0.05,88770.0,88743.0,0.012686]
[1763656442375,0.75118307,88770.0,88743.0,0.33610591]
[1763656442592,0.09193,88800.0,88769.0,0.01769]
[1763656442801,0.03028494,88799.0,88773.0,0.37510249]
[1763656443034,0.04538,88809.0,88774.0,0.10916494]
[1763656443035,0.02018996,88798.0,88774.0,0.10916494]
[1763656443261,0.04538,88809.0,88771.0,0.05210249]
[1763656443262,0.70118307,88790.0,88771.0,0.05210249]
[1763656443491,0.70118307,88790.0,88770.0,0.00388]
[1763656443745,0.70118307,88790.0,88759.0,0.09233]
[1763656443746,0.48051257,88789.0,88747.0,0.323]
[1763656443954,0.70118307,88780.0,88758.0,0.00388]
[1763656444165,0.05,88770.0,88758.0,0.00388]
[1763656444371,0.05,88770.0,88747.0,0.00041991]
[1763656444372,0.05,88763.0,88747.0,0.00041991]
[1763656444592,0.09538,88759.0,88747.0,0.00041991]
[1763656444810,0.04538,88759.0,88747.0,0.00041991]
[1763656445737,0.05,88748.0,88747.0,0.00041991]
[1763656446159,0.10193,88748.0,88747.0,0.00041991]
[1763656446385,0.44511932,88748.0,88747.0,0.00041991]
[1763656446860,0.45521359,88748.0,88747.0,0.00041991]
[1763656447305,0.35318932,88748.0,88747.0,0.00041991]
[1763656447508,0.04538,88759.0,88747.0,0.00041991]
[1763656447509,0.01,88755.0,88747.0,0.00041991]
[1763656447735,0.70118307,88770.0,88747.0,0.00041991]
[1763656447736,0.01,88769.0,88758.0,0.02207]
[1763656447949,0.04538,88809.0,88759.0,0.07463541]
[1763656448169,0.04538,88796.0,88761.0,0.05210249]
[1763656448379,0.04538,88809.0,88760.0,0.43500053]
[1763656448380,0.09193,88816.0,88781.0,0.37510249]
[1763656448579,0.0002,88850.0,88791.0,0.05210249]
[1763656448580,0.09193,88828.0,88791.0,0.05210249]
[1763656448793,0.01766483,88818.0,88791.0,0.05210249]
[1763656449026,0.75118307,88801.0,88764.0,0.323]
[1763656449239,0.01,88788.0,88772.0,0.05210249]
[1763656449462,0.01,88788.0,88770.0,0.00388]
[1763656449463,0.05,88786.0,88770.0,0.00388]
[1763656449666,0.01,88788.0,88772.0,0.00012589]
[1763656449894,0.09193,88798.0,88772.0,0.00012589]
[1763656450133,0.3532643,88797.0,88772.0,0.00012589]
[1763656450352,0.70118307,88782.0,88772.0,0.00012589]
[1763656450570,0.05,88773.0,88772.0,0.00012589]
[1763656451038,0.14193,88773.0,88772.0,0.00012589]
[1763656451285,0.16210367,88773.0,88772.0,0.00012589]
[1763656451459,0.07017367,88773.0,88772.0,0.00012589]
[1763656451696,0.17977622,88773.0,88772.0,0.00012589]
[1763656451923,0.15960255,88773.0,88772.0,0.00012589]
[1763656452142,0.50277643,88773.0,88772.0,0.00012589]
[1763656453033,3.51286172,88773.0,88772.0,0.00012589]
[1763656453878,0.51286172,88773.0,88772.0,0.00012589]
[1763656454516,0.51386172,88773.0,88772.0,0.00012589]
[1763656454724,0.51286172,88773.0,88772.0,0.00012589]
[1763656455150,3.56286172,88773.0,88772.0,0.00012589]
[1763656455368,3.56286172,88773.0,88709.0,0.0373]
[1763656455369,0.323,88743.0,88709.0,0.0373]
[1763656455593,0.70118307,88730.0,88709.0,0.00041991]
[1763656456013,0.05,88723.0,88709.0,0.00041991]
[1763656456609,0.05,88733.0,88709.0,0.00041991]
[1763656456963,0.01,88745.0,88711.0,0.323]
[1763656457169,0.09193,88759.0,88710.0,0.91584674]
[1763656457170,0.01,88751.0,88721.0,0.37510249]
[1763656457516,0.09193,88759.0,88721.0,0.41969601]
[1763656457719,0.09193,88759.0,88723.0,0.37510249]
[1763656457929,0.05,88753.0,88725.0,0.05210249]
[1763656458127,0.05,88753.0,88724.0,0.42474399]
[1763656458128,0.05,88761.0,88731.0,0.37510249]
[1763656458287,0.70118307,88760.0,88731.0,0.41969601]
[1763656458476,0.70118307,88760.0,88733.0,0.05210249]
[1763656458681,0.70118307,88750.0,88732.0,0.05210249]
[1763656458886,0.05,88750.0,88732.0,0.05210249]
[1763656459097,0.05,88738.0,88732.0,0.05210249]
[1763656459328,0.05,88743.0,88732.0,0.05210249]
[1763656459530,0.79311307,88750.0,88732.0,0.05210249]
[1763656459756,0.09193,88750.0,88732.0,0.05210249]
[1763656459911,0.05,88743.0,88732.0,0.05210249]
[1763656460407,0.79311307,88750.0,88732.0,0.05310249]
[1763656460790,0.05,88739.0,88732.0,0.05310249]
[1763656460990,0.05,88745.0,88732.0,0.05310249]
[1763656461217,0.04538,88759.0,88732.0,0.05310249]
[1763656461218,0.36838,88759.0,88734.0,0.05210249]
[1763656461422,0.04538,88759.0,88735.0,0.01676549]
[1763656461647,0.323,88771.0,88736.0,0.16443617]
[1763656461840,0.02019998,88810.0,88736.0,0.16443617]
[1763656461841,0.70118307,88800.0,88772.0,0.0373]
[1763656462043,0.09193,88803.0,88773.0,0.05210249]
[1763656462270,0.70118307,88790.0,88772.0,0.04847352]
[1763656462471,0.70118307,88790.0,88763.0,0.08940249]
[1763656462472,0.70118307,88782.0,88763.0,0.05210249]
[1763656462590,0.09193,88802.0,88763.0,0.05210249]
[1763656462803,0.70118307,88800.0,88765.0,0.37510249]
[1763656463214,0.01766835,88797.0,88767.0,0.05210249]
[1763656463440,0.01766835,88797.0,88765.0,0.05210249]
[1763656463441,0.05,88789.0,88765.0,0.05210249]
[1763656463812,0.01766835,88797.0,88771.0,0.05210249]
[1763656464013,0.001,88800.0,88771.0,0.37510249]
[1763656464209,0.001,88800.0,88781.0,0.05210249]
[1763656464442,0.0001258,88802.0,88783.0,0.05210249]
[1763656464687,0.05,88799.0,88783.0,0.05210249]
[1763656464897,0.0001258,88802.0,88783.0,0.05210249]
[1763656465114,0.05,88800.0,88781.0,0.04459352]
[1763656465363,0.05,88799.0,88785.0,0.05210249]
[1763656465579,0.05,88782.0,88778.0,0.00388]
[1763656465799,0.05,88782.0,88755.0,0.12224586]
[1763656465800,0.05,88787.0,88770.0,0.04459352]
[1763656466058,0.70118307,88790.0,88750.0,0.82351674]
[1763656466059,0.04538,88781.0,88763.0,0.00388]
[1763656466296,0.04538,88781.0,88760.0,0.04459352]
[1763656466297,0.05,88770.0,88760.0,0.04459352]
[1763656466514,0.79311307,88780.0,88760.0,0.04459352]
[1763656466726,0.05,88761.0,88751.0,0.00388]
[1763656466949,0.70118307,88761.0,88749.0,0.04459352]
[1763656467160,0.70118307,88761.0,88739.0,0.04459352]
[1763656467161,0.05,88757.0,88739.0,0.04459352]
[1763656467379,0.70118307,88761.0,88739.0,0.04459352]
[1763656467380,0.05,88749.0,88739.0,0.04459352]
[1763656467599,0.0001257,88757.0,88740.0,0.02253775]
[1763656467820,0.0001257,88757.0,88722.0,0.09233]
[1763656467821,0.70118307,88750.0,88727.0,0.04459352]
[1763656468088,0.70118307,88740.0,88727.0,0.04459352]
[1763656468290,0.70118307,88740.0,88720.0,0.02642283]
[1763656468291,0.05,88733.0,88720.0,0.02642283]
[1763656468510,0.01,88743.0,88721.0,0.02254257]
[1763656468732,0.70118307,88740.0,88715.0,0.04459352]
[1763656468952,0.05,88718.0,88703.0,0.04459352]
[1763656469201,0.04538,88721.0,88705.0,0.02254664]
[1763656469450,0.04538,88721.0,88703.0,0.04459352]
[1763656469451,0.05,88722.0,88703.0,0.04459352]
[1763656469684,0.05,88718.0,88704.0,0.01517174]
[1763656469895,0.05,88728.0,88704.0,0.42787689]
[1763656470114,0.05,88727.0,88704.0,0.40533]
[1763656470331,0.05,88735.0,88705.0,0.05210249]
[1763656470546,0.70118307,88740.0,88707.0,0.37510249]
[1763656470760,0.70118307,88740.0,88709.0,0.05210249]
[1763656470974,0.05,88735.0,88710.0,0.01755899]
[1763656471191,0.70118307,88740.0,88707.0,0.323]
[1763656471192,0.05,88731.0,88712.0,0.37510249]
[1763656471406,0.04158,88741.0,88712.0,0.37510249]
[1763656471407,0.05,88720.0,88712.0,0.05210249]
[1763656471619,0.08173,88739.0,88712.0,0.07270249]
[1763656471843,0.05,88729.0,88712.0,0.07270249]
[1763656472052,0.08173,88739.0,88712.0,0.07270249]
[1763656472053,0.05,88726.0,88712.0,0.05210249]
[1763656472278,0.05,88729.0,88712.0,0.05210249]
[1763656472493,0.05,88731.0,88712.0,0.05210249]
[1763656472707,0.05,88722.0,88712.0,0.05210249]
[1763656473138,0.08173,88739.0,88713.0,0.01999799]
[1763656473139,0.05,88726.0,88713.0,0.01999799]
[1763656473598,0.04158,88741.0,88712.0,0.05210249]
[1763656473599,0.08203,88725.0,88712.0,0.05210249]
[1763656473806,0.08203,88725.0,88704.0,0.0229668]
[1763656474015,0.05,88722.0,88704.0,0.03011083]
[1763656474248,0.05,88720.0,88704.0,0.03011083]
[1763656474453,0.04158,88741.0,88704.0,0.03011083]
[1763656474454,0.05,88723.0,88705.0,0.05210249]
[1763656474622,0.78321307,88740.0,88707.0,0.05210249]
[1763656474858,0.04158,88741.0,88709.0,0.37510249]
[1763656475061,0.04158,88741.0,88710.0,0.01362824]
[1763656475270,0.05,88735.0,88712.0,0.37510249]
[1763656475537,0.05,88731.0,88712.0,0.37510249]
[1763656475747,0.70118307,88730.0,88712.0,0.37510249]
[1763656475970,0.08203,88731.0,88706.0,0.05210249]
[1763656476190,0.04158,88741.0,88704.0,0.0525224]
[1763656476191,0.05,88716.0,88704.0,0.0525224]
[1763656476594,0.05,88715.0,88704.0,0.0525224]
[1763656476884,0.08203,88729.0,88704.0,0.0525224]
[1763656477102,0.05,88719.0,88704.0,0.00041991]
[1763656477312,0.05,88718.0,88704.0,0.07374288]
[1763656477551,0.04146,88720.0,88704.0,0.07374288]
[1763656477552,0.01,88716.0,88704.0,0.00141991]
[1763656477756,0.01768134,88715.0,88704.0,0.00141991]
[1763656477980,0.01768134,88715.0,88704.0,0.00241991]
[1763656478201,0.08203,88719.0,88704.0,0.00241991]
[1763656478202,0.0495,88709.0,88704.0,0.00241991]
[1763656478470,0.0495,88705.0,88704.0,0.00141991]
[1763656478677,0.13153,88705.0,88704.0,0.00141991]
[1763656479114,0.13153,88705.0,88704.0,0.00041991]
[1763656479388,0.13153,88705.0,88676.0,0.04459352]
[1763656479389,0.15164093,88705.0,88676.0,0.04459352]
[1763656479594,0.34068162,88713.0,88682.0,0.0003705]
[1763656479595,0.09096,88683.0,88682.0,0.0003705]
[1763656479820,0.17299,88683.0,88682.0,0.0003705]
[1763656480321,0.70118307,88675.0,88660.0,0.0002]
[1763656480535,0.70118307,88675.0,88660.0,0.00032608]
[1763656480536,0.04146,88666.0,88660.0,0.00032608]
[1763656480988,0.04146,88683.0,88660.0,0.00032608]
[1763656481195,0.04146,88695.0,88661.0,0.52206368]
[1763656481425,0.04146,88695.0,88664.0,0.05210249]
[1763656481910,0.0495,88688.0,88666.0,0.05210249]
[1763656482147,0.04146,88695.0,88668.0,0.05210249]
[1763656482374,0.04146,88695.0,88670.0,0.05210249]
[1763656482577,0.0495,88691.0,88672.0,0.05210249]
[1763656482798,0.0495,88691.0,88668.0,0.04459352]
[1763656482799,0.70118307,88690.0,88673.0,0.02255477]
[1763656483016,0.0495,88681.0,88673.0,0.02255477]
[1763656483284,0.08203,88689.0,88668.0,0.04459352]
[1763656483490,0.0495,88675.0,88661.0,0.02255783]
[1763656483701,0.0495,88675.0,88656.0,0.05210249]
[1763656484132,0.0495,88675.0,88655.0,0.04459352]
[1763656484133,0.0495,88666.0,88655.0,0.04459352]
[1763656484350,0.70118307,88670.0,88656.0,0.0225591]
[1763656484611,0.01,88681.0,88665.0,0.00052043]
[1763656484822,0.0495,88682.0,88660.0,0.02288416]
[1763656485060,0.0495,88682.0,88661.0,0.05210249]
[1763656485275,0.01768162,88713.0,88661.0,0.10482575]
[1763656485276,0.0495,88689.0,88661.0,0.10482575]
[1763656485489,0.08203,88694.0,88662.0,0.05210249]
[1763656485698,0.75664843,88710.0,88662.0,0.05210249]
[1763656485699,0.02,88690.0,88673.0,0.001]
[1763656485911,0.323,88704.0,88673.0,0.001]
[1763656486129,0.08203,88705.0,88673.0,0.01836187]
[1763656486130,0.09096,88695.0,88673.0,0.01836187]
[1763656486354,0.08203,88705.0,88673.0,0.01836187]
[1763656486355,0.0495,88702.0,88673.0,0.01836187]
[1763656486777,0.01768162,88713.0,88674.0,0.08673]
[1763656486989,0.0495,88709.0,88675.0,0.03598356]
[1763656487207,0.01768162,88713.0,88680.0,0.00999999]
[1763656487426,0.01768162,88713.0,88691.0,0.0112751]
[1763656487650,0.02871236,88786.0,88691.0,0.0112751]
[1763656487651,0.05146,88749.0,88713.0,0.05210249]
[1763656487841,0.05146,88749.0,88715.0,0.05210249]
[1763656487842,0.01768278,88744.0,88715.0,0.05210249]
[1763656488054,0.04146,88749.0,88716.0,0.08673]
[1763656488269,0.08203,88748.0,88717.0,0.37510249]
[1763656488476,0.08203,88748.0,88708.0,0.05210249]
[1763656488477,3.0,88744.0,88708.0,0.05210249]
[1763656488682,0.0495,88729.0,88708.0,0.05210249]
[1763656488898,0.12349,88728.0,88708.0,0.05210249]
[1763656489068,0.12349,88728.0,88707.0,0.00388]
[1763656489270,0.08203,88727.0,88707.0,0.00388]
[1763656489481,0.08203,88727.0,88695.0,0.05210249]
[1763656489610,0.04146,88728.0,88695.0,0.05210249]
[1763656489611,0.04146,88728.0,88696.0,0.10927893]
[1763656489814,0.04146,88728.0,88697.0,0.05210249]
[1763656490020,0.04146,88728.0,88699.0,0.05210249]
[1763656490021,0.0495,88727.0,88699.0,0.05210249]
[1763656490224,0.12349,88728.0,88708.0,0.001]
[1763656490423,0.0495,88724.0,88701.0,0.05210249]
[1763656490647,0.00041921,88744.0,88701.0,0.05210249]
[1763656490648,0.05914202,88737.0,88703.0,0.05210249]
[1763656490931,0.05914202,88737.0,88705.0,0.37510249]
[1763656490932,0.01768202,88737.0,88705.0,0.37510249]
[1763656491166,0.00041921,88744.0,88712.0,0.323]
[1763656491167,0.01809961,88744.0,88712.0,0.323]
[1763656491380,0.01809961,88744.0,88714.0,0.37510249]
[1763656491381,0.00041921,88744.0,88714.0,0.37510249]
[1763656491587,0.00041921,88744.0,88715.0,0.00388]
[1763656491794,0.00041921,88744.0,88715.0,0.41361]
[1763656492008,0.08203,88743.0,88716.0,0.05210249]
[1763656492210,0.0495,88727.0,88715.0,0.00388]
[1763656492417,0.01,88726.0,88709.0,0.00388]
[1763656492643,0.01,88726.0,88703.0,0.07464964]
[1763656492840,0.0495,88727.0,88696.0,0.05210249]
[1763656493038,0.0495,88730.0,88697.0,0.01390106]
[1763656493282,0.08203,88743.0,88703.0,0.37510249]
[1763656493491,0.08203,88743.0,88705.0,0.05210249]
[1763656493699,0.0495,88730.0,88698.0,0.37510249]
[1763656493909,0.0495,88725.0,88703.0,0.001]
[1763656494111,0.0495,88730.0,88703.0,0.02254715]
[1763656494313,0.0176812,88722.0,88704.0,0.05210249]
[1763656495141,0.09203,88721.0,88695.0,0.00388]
[1763656495343,0.0176812,88722.0,88696.0,0.01471818]
[1763656495582,0.0495,88721.0,88696.0,0.01471818]
[1763656495784,0.0176812,88722.0,88696.0,0.01471818]
[1763656495987,0.0495,88718.0,88696.0,0.06877713]
[1763656496184,0.0176812,88722.0,88703.0,0.001]
[1763656496185,0.0671812,88722.0,88703.0,0.001]
[1763656496407,0.0176812,88722.0,88703.0,0.01204268]
[1763656496604,0.0176812,88722.0,88704.0,0.02254689]
[1763656497038,0.08203,88745.0,88705.0,0.05210249]
[1763656497278,0.01768156,88732.0,88706.0,0.39398432]
[1763656497466,0.08203,88743.0,88706.0,0.323]
[1763656497651,0.08203,88743.0,88689.0,0.15248138]
[1763656497652,0.75594551,88740.0,88697.0,0.00388]
[1763656497861,0.01,88721.0,88697.0,0.00388]
[1763656498068,0.04146,88720.0,88697.0,0.00388]
[1763656498422,0.0495,88715.0,88697.0,0.00388]
[1763656498626,0.08203,88719.0,88697.0,0.00388]
[1763656499050,0.0495,88714.0,88697.0,0.00388]
[1763656499294,0.08203,88713.0,88686.0,0.07465396]
[1763656499434,0.08203,88713.0,88686.0,0.05210249]
[1763656499640,0.08203,88713.0,88683.0,0.05210249]
[1763656499641,0.01,88712.0,88683.0,0.05210249]
[1763656499857,0.01,88712.0,88683.0,0.06071182]
[1763656500110,0.0495,88704.0,88685.0,0.05210249]
[1763656500367,0.01768439,88708.0,88687.0,0.37510249]
[1763656500559,0.01768439,88708.0,88687.0,0.323]
[1763656500777,0.08215569,88713.0,88682.0,0.00388]
[1763656500778,0.08203,88707.0,88682.0,0.00388]
[1763656501324,0.0495,88699.0,88682.0,0.00388]
[1763656501525,0.00012569,88713.0,88683.0,0.05210249]
[1763656501727,0.00012569,88713.0,88685.0,0.05210249]
[1763656502067,0.08203,88712.0,88686.0,0.02255147]
[1763656502206,0.08203,88712.0,88682.0,0.00388]
[1763656502207,0.0495,88698.0,88682.0,0.00388]
[1763656502448,0.08203,88712.0,88663.0,0.03011077]
[1763656502449,0.03571,88683.0,88663.0,0.03011077]
[1763656502674,0.03571,88683.0,88660.0,0.0002]
[1763656502867,0.40961,88682.0,88660.0,0.0002]
[1763656503072,0.01,88675.0,88660.0,0.0002]
[1763656503499,0.09661,88675.0,88674.0,0.00124488]
[1763656503719,0.09661,88675.0,88674.0,0.00137096]
[1763656503943,0.09661,88675.0,88674.0,0.00037096]
[1763656503944,0.11429928,88675.0,88674.0,0.00037096]
[1763656504133,0.11529928,88675.0,88674.0,0.00037096]
[1763656504333,0.02868928,88675.0,88674.0,0.00037096]
[1763656504578,0.01868928,88675.0,88674.0,0.00037096]
[1763656504797,0.10529928,88675.0,88674.0,0.00037096]
[1763656504972,0.15479928,88675.0,88674.0,0.00037096]
[1763656505369,0.15379928,88675.0,88674.0,0.00037096]
[1763656506394,0.50704759,88675.0,88674.0,0.00037096]
[1763656506615,3.49577046,88675.0,88674.0,0.00037096]
[1763656506857,3.48935831,88675.0,88674.0,0.00037096]
[1763656507232,0.48935831,88675.0,88674.0,0.00037096]
[1763656507434,0.16635831,88675.0,88674.0,0.00037096]
[1763656508419,0.16635391,88675.0,88674.0,0.00037096]
[1763656508620,0.49035391,88675.0,88674.0,0.00037096]
[1763656508819,3.49035391,88675.0,88674.0,0.00037096]
[1763656509028,0.49035391,88675.0,88674.0,0.00037096]
[1763656509221,0.48027535,88675.0,88674.0,0.00037096]
[1763656509496,0.49135387,88675.0,88674.0,0.00037096]
[1763656509939,0.17596613,88675.0,88674.0,0.00037096]
[1763656510152,0.01969078,88675.0,88674.0,0.00037096]
[1763656510354,0.002,88675.0,88674.0,0.00037096]
[1763656510783,0.001,88675.0,88674.0,0.00037096]
[1763656511609,0.88836298,88710.0,88674.0,0.00037096]
[1763656511610,0.0495,88698.0,88674.0,0.00037096]
[1763656511816,0.04146,88720.0,88674.0,0.08038096]
[1763656511817,0.08661,88712.0,88674.0,0.08038096]
[1763656512019,0.0495,88701.0,88675.0,0.34555427]
[1763656512269,0.04142,88705.0,88677.0,0.37510249]
[1763656512491,0.04146,88720.0,88682.0,0.05210249]
[1763656512708,0.88836298,88730.0,88691.0,0.323]
[1763656512709,0.01,88730.0,88691.0,0.323]
[1763656512930,0.04142,88724.0,88693.0,0.323]
[1763656513132,0.04142,88724.0,88694.0,0.05210249]
[1763656513356,0.08661,88723.0,88696.0,0.323]
[1763656513859,0.04904207,88713.0,88677.0,0.37510249]
[1763656514068,0.01768331,88717.0,88677.0,0.37510249]
[1763656514069,0.01768331,88717.0,88679.0,0.37510249]
[1763656514286,0.01768331,88717.0,88680.0,0.01799775]
[1763656514287,0.04904207,88709.0,88680.0,0.01799775]
[1763656514514,0.04904207,88709.0,88679.0,0.37510249]
[1763656514515,0.04904207,88709.0,88681.0,0.05398237]
[1763656514745,0.01768331,88717.0,88679.0,0.323]
[1763656514746,0.08661,88708.0,88679.0,0.323]
[1763656514993,0.08661,88708.0,88668.0,0.13211249]
[1763656514994,0.88836298,88700.0,88662.0,0.03011077]
[1763656515239,0.88836298,88700.0,88663.0,0.00388]
[1763656515240,0.04904207,88694.0,88663.0,0.00388]
[1763656515510,0.04904207,88694.0,88664.0,0.02255706]
[1763656515792,0.04904207,88694.0,88665.0,0.0746593]
[1763656516051,0.04904207,88695.0,88665.0,0.0746593]
[1763656516530,0.04904207,88697.0,88667.0,0.08001]
[1763656516762,0.04904207,88710.0,88678.0,0.22553389]
[1763656517064,0.08661,88709.0,88681.0,0.323]
[1763656517375,0.04142,88679.0,88674.0,0.00037096]
[1763656517599,0.04142,88693.0,88674.0,0.00037096]
[1763656517850,0.22539432,88734.0,88674.0,0.00037096]
[1763656517851,0.08661,88708.0,88677.0,0.05210249]
[1763656518078,0.88836298,88720.0,88679.0,0.37510249]
[1763656518313,0.13565207,88719.0,88684.0,0.06337848]
[1763656518548,0.04904207,88719.0,88685.0,0.323]
[1763656518791,0.88836298,88700.0,88674.0,0.00037096]
[1763656519093,0.40961,88716.0,88674.0,0.00037096]
[1763656519359,0.04142,88699.0,88674.0,0.08090561]
[1763656519849,0.04904207,88697.0,88674.0,0.02292548]
[1763656520139,0.08661,88698.0,88674.0,0.02292548]
[1763656520415,0.05910636,88699.0,88674.0,0.02392548]
[1763656520718,0.05910636,88699.0,88674.0,0.08017398]
[1763656520959,0.05910636,88699.0,88674.0,0.00037096]
[1763656520960,0.10679595,88698.0,88674.0,0.00037096]
[1763656521441,0.04904207,88684.0,88674.0,0.00037096]
[1763656521821,0.05910636,88699.0,88674.0,0.00037096]
[1763656521822,0.10679487,88683.0,88674.0,0.00037096]
[1763656522005,0.10679487,88683.0,88636.0,0.0401477]
[1763656522006,0.01128031,88650.0,88620.0,0.0002]
[1763656522217,0.03093,88621.0,88620.0,0.0002]
[1763656522447,0.323,88639.0,88620.0,0.0002]
[1763656522662,0.03022691,88638.0,88620.0,0.0002]
[1763656522885,0.04904207,88634.0,88620.0,0.0002]
[1763656523109,0.01,88626.0,88620.0,0.0002]
[1763656523323,0.04904207,88621.0,88620.0,0.0002]
[1763656523542,0.13565207,88621.0,88620.0,0.0002]
[1763656525267,0.18775456,88621.0,88620.0,0.0002]
[1763656525484,0.45865207,88621.0,88620.0,0.0002]
[1763656525899,3.45865207,88621.0,88620.0,0.0002]
[1763656526112,0.08661,88621.0,88620.0,0.0002]
[1763656526318,0.13665207,88621.0,88620.0,0.0002]
[1763656526526,0.13565207,88621.0,88620.0,0.0002]
[1763656526930,0.13665207,88621.0,88620.0,0.0002]
[1763656527153,0.1543534,88621.0,88620.0,0.0002]
[1763656527705,3.20645589,88621.0,88620.0,0.0002]
[1763656528063,3.4773534,88621.0,88620.0,0.00185404]
[1763656528378,3.59855496,88621.0,88620.0,0.00185404]
[1763656528554,3.59855496,88621.0,88600.0,0.0004]
[1763656528555,0.05210249,88601.0,88600.0,0.0004]
[1763656528800,0.46556456,88601.0,88600.0,0.0004]
[1763656529009,0.46556456,88601.0,88551.0,0.02258585]
[1763656529010,0.01,88571.0,88551.0,0.02258585]
[1763656529215,0.01,88571.0,88534.0,0.03861]
[1763656529216,0.09661,88571.0,88538.0,0.01680367]
[1763656529673,0.08661,88571.0,88538.0,0.01680367]
[1763656529880,0.02,88574.0,88545.0,0.07914]
[1763656530092,0.02,88574.0,88546.0,0.01778264]
[1763656530319,0.07909,88573.0,88570.0,0.00082032]
[1763656530524,0.04904207,88571.0,88570.0,0.00082032]
[1763656530953,0.00833,88582.0,88570.0,0.00082032]
[1763656531164,0.01833,88582.0,88570.0,0.00082032]
[1763656531417,0.00999999,88620.0,88570.0,0.00082032]
[1763656531418,0.01,88595.0,88570.0,0.00082032]
[1763656531618,0.88836298,88600.0,88570.0,0.00082032]
[1763656531619,0.07909,88596.0,88570.0,0.00182032]
[1763656531822,0.08909,88596.0,88570.0,0.00082032]
[1763656532046,0.07909,88596.0,88570.0,0.01791206]
[1763656532286,0.04077,88614.0,88571.0,0.00962662]
[1763656532510,0.12725207,88613.0,88580.0,0.37510249]
[1763656532717,0.04904207,88607.0,88582.0,0.05210249]
[1763656532926,0.001,88595.0,88584.0,0.05210249]
[1763656533154,0.04077,88614.0,88589.0,0.05210249]
[1763656533388,0.04077,88614.0,88586.0,0.05210249]
[1763656533389,0.01770133,88621.0,88594.0,0.03779]
[1763656533623,0.05269891,88661.0,88601.0,0.37510249]
[1763656533624,0.01,88636.0,88601.0,0.37510249]
[1763656533835,0.07821,88639.0,88604.0,0.05210249]
[1763656534044,0.07821,88638.0,88606.0,0.05210249]
[1763656534248,0.07821,88638.0,88608.0,0.05210249]
[1763656534465,0.07821,88638.0,88599.0,0.323]
[1763656534466,0.07821,88638.0,88597.0,0.323]
[1763656534677,0.07821,88638.0,88612.0,0.00024513]
[1763656534678,0.04904207,88613.0,88612.0,0.00024513]
[1763656535143,0.12725207,88613.0,88612.0,0.00024513]
[1763656535373,0.07821,88613.0,88612.0,0.00024513]
[1763656535628,0.04904207,88614.0,88612.0,0.00024513]
[1763656535833,0.88836298,88630.0,88612.0,0.00024513]
[1763656536039,0.00012555,88638.0,88612.0,0.00024513]
[1763656536040,0.01,88617.0,88612.0,0.00024513]
[1763656536245,0.04904207,88613.0,88612.0,0.00024513]
[1763656536459,0.04904207,88616.0,88612.0,0.00024513]
[1763656536927,0.00012555,88638.0,88612.0,0.00024513]
[1763656537138,0.01,88635.0,88612.0,0.00024513]
[1763656537342,0.04904207,88630.0,88612.0,0.00024513]
[1763656537955,0.04904207,88630.0,88612.0,0.00124513]
[1763656538162,0.07821,88630.0,88612.0,0.00024513]
[1763656538378,0.00012555,88638.0,88612.0,0.00024513]
[1763656538631,0.00012555,88638.0,88613.0,0.37510249]
[1763656538852,0.00012555,88638.0,88613.0,0.323]
[1763656538853,0.04904207,88627.0,88613.0,0.323]
[1763656539069,0.88836298,88630.0,88613.0,0.323]
[1763656539070,0.04904207,88621.0,88613.0,0.323]
[1763656539278,0.07821,88629.0,88613.0,0.323]
[1763656539485,0.00012555,88638.0,88612.0,0.00024513]
[1763656539702,0.00012555,88638.0,88614.0,0.37510249]
[1763656539907,0.00012555,88638.0,88616.0,0.05210249]
[1763656540346,0.00012555,88638.0,88637.0,0.02913]
[1763656540547,0.00012555,88638.0,88637.0,0.08123249]
[1763656540954,0.00012555,88638.0,88637.0,0.08974374]
[1763656541194,0.00012555,88638.0,88637.0,0.05210249]
[1763656541390,0.00012555,88638.0,88634.0,0.00388]
[1763656541824,0.00012555,88638.0,88637.0,0.001]
[1763656542031,0.00012555,88638.0,88637.0,0.002]
[1763656542480,0.00012555,88638.0,88610.0,0.88836298]
[1763656542481,0.01128324,88627.0,88575.0,0.0401477]
[1763656542703,0.01128324,88627.0,88573.0,0.03779]
[1763656542704,0.04604,88613.0,88576.0,0.10377914]
[1763656542925,0.04604,88613.0,88580.0,0.88836298]
[1763656543129,0.12425,88613.0,88576.0,0.08145]
[1763656543332,0.12425,88613.0,88581.0,0.0225782]
[1763656543525,0.12425,88613.0,88577.0,0.323]
[1763656543526,0.12425,88613.0,88582.0,0.02257795]
[1763656543726,0.12061134,88613.0,88582.0,0.02257795]
[1763656543906,0.12025,88613.0,88582.0,0.02257795]
[1763656544132,0.12025,88613.0,88577.0,0.323]
[1763656544356,0.12025,88613.0,88570.0,0.0004]
[1763656544357,0.12025,88613.0,88578.0,0.02257896]
[1763656544573,0.11059358,88613.0,88570.0,0.0004]
[1763656544990,3.10959358,88613.0,88570.0,0.0004]
[1763656545199,3.10959358,88613.0,88570.0,0.022981]
[1763656545200,0.10959358,88613.0,88570.0,0.022981]
[1763656545398,0.11159358,88613.0,88570.0,0.022981]